bitfinex/quotes_ETHUSD_20251212
["timestamp","ask_amount","ask_price","bid_price","bid_amount"]
[1765572553314,0.4651,3083.4,3083.3,0.58047529]
[1765572554004,0.9308,3083.4,3083.3,0.58047529]
[1765572554621,1.0874,3083.9,3083.3,4.28155359]
[1765572554810,1.0874,3083.9,3083.4,0.09444716]
[1765572555015,4.33008321,3083.9,3083.4,0.09444716]
[1765572555196,0.89870832,3083.8,3083.4,0.09444716]
[1765572555398,0.4651,3083.5,3083.3,0.58047529]
[1765572555609,0.3696,3083.4,3083.3,0.58047529]
[1765572556297,0.1933,3084.1,3083.3,1.03827529]
[1765572556518,0.1933,3084.1,3083.5,0.55224716]
[1765572556826,0.1933,3084.1,3083.7,0.09444716]
[1765572557322,0.1933,3084.1,3083.9,0.09444716]
[1765572557923,6.48361266,3084.7,3084.0,0.4578]
[1765572558095,6.48403306,3084.5,3084.1,0.09444716]
[1765572558526,0.4651,3084.2,3084.1,0.09444716]
[1765572559023,0.7064088,3084.6,3084.1,0.25774716]
[1765572559224,3.24192928,3084.6,3084.4,0.09444716]
[1765572559396,3.73692928,3084.6,3084.4,0.09444716]
[1765572559595,0.9916,3084.5,3084.4,0.09444716]
[1765572560420,4.23361653,3084.5,3084.4,0.09444716]
[1765572560610,0.4977,3084.5,3084.1,0.09444716]
[1765572560890,0.4977,3084.5,3084.3,0.09444716]
[1765572561095,1.64916117,3084.5,3084.3,0.09444716]
[1765572561295,0.2637,3084.4,3084.3,0.09444716]
[1765572561530,0.717,3084.4,3084.3,0.09444716]
[1765572562925,0.2637,3084.4,3084.3,0.09444716]
[1765572563129,3.69514315,3084.7,3084.3,0.09444716]
[1765572563332,4.38881976,3084.7,3084.3,0.09444716]
[1765572563497,0.4533,3084.6,3084.3,0.09444716]
[1765572564209,0.4977,3084.4,3084.1,0.09444716]
[1765572564406,0.2637,3084.2,3083.9,0.09444716]
[1765572564739,0.4954,3084.0,3083.9,0.09444716]
[1765572565230,0.9487,3084.0,3083.7,0.09444716]
[1765572565437,0.4931,3083.8,3083.7,0.67492245]
[1765572565821,0.4533,3084.0,3083.7,0.67492245]
[1765572566232,0.4533,3084.0,3083.7,0.09444716]
[1765572566650,0.4977,3083.8,3083.7,0.09444716]
[1765572567534,0.951,3083.8,3083.7,0.09444716]
[1765572567736,0.951,3083.8,3083.2,0.09444716]
[1765572567737,1.3898474,3083.8,3083.2,0.09444716]
[1765572567921,0.4977,3083.3,3083.2,0.09444716]
[1765572568127,0.4977,3083.3,3083.0,0.09444716]
[1765572568429,0.2622,3083.2,3083.0,0.09444716]
[1765572568625,0.4954,3083.1,3083.0,0.09444716]
[1765572569058,0.9487,3083.1,3082.8,0.60944716]
[1765572569238,0.9487,3083.1,3082.8,0.09444716]
[1765572569239,0.2645,3082.9,3082.8,0.09444716]
[1765572569743,0.7178,3082.9,3082.8,0.09444716]
[1765572570641,0.2645,3082.9,3082.8,0.09444716]
[1765572571030,4.15639911,3082.9,3082.7,0.09444716]
[1765572571350,0.4765,3082.8,3082.7,0.09444716]
[1765572571655,3.24335603,3083.3,3082.8,0.4583]
[1765572571833,0.74548078,3083.3,3082.9,0.09444716]
[1765572572154,1.19878078,3083.3,3083.1,0.09444716]
[1765572572525,0.4977,3083.2,3083.1,0.09444716]
[1765572572752,0.951,3083.2,3082.9,0.09444716]
[1765572573353,4.19438704,3083.2,3082.9,0.09444716]
[1765572573864,0.2456,3083.0,3082.9,0.09444716]
[1765572574851,3.94252071,3083.0,3082.8,0.09444716]
[1765572575055,0.1949,3082.9,3082.8,0.09444716]
[1765572575253,1.1459,3082.9,3082.8,0.09444716]
[1765572575550,1.1459,3082.9,3082.7,0.09444716]
[1765572575944,0.2456,3082.8,3082.7,0.09444716]
[1765572576450,0.2456,3082.8,3082.5,3.91896745]
[1765572576656,0.4952,3082.7,3082.5,3.91896745]
[1765572576982,0.4952,3082.7,3082.5,0.67492245]
[1765572578045,0.4952,3082.7,3082.5,0.09444716]
[1765572578656,0.4952,3082.7,3082.5,0.67492245]
[1765572579385,0.4533,3083.3,3082.6,1.50817529]
[1765572579529,0.4533,3083.3,3082.8,0.4583]
[1765572579729,3.6965783,3083.3,3082.8,0.4583]
[1765572580028,0.7454777,3083.2,3082.8,0.4583]
[1765572580254,1.1987777,3083.2,3082.8,0.4583]
[1765572581154,0.7454777,3083.2,3082.9,0.09444716]
[1765572581360,0.4533,3083.2,3082.9,0.09444716]
[1765572582643,0.4977,3083.0,3082.9,0.09444716]
[1765572582858,0.4977,3083.0,3082.6,6.73632467]
[1765572583053,0.4977,3082.7,3082.5,0.09444716]
[1765572583249,0.4977,3082.7,3082.5,3.33854298]
[1765572583557,0.515,3083.4,3082.6,7.19462467]
[1765572583758,0.515,3083.4,3082.8,0.09444716]
[1765572583948,0.4533,3083.3,3082.7,0.09444716]
[1765572584155,0.4977,3082.7,3082.5,0.67492245]
[1765572584349,0.4533,3083.3,3082.5,0.09444716]
[1765572584563,0.4533,3083.3,3082.7,0.09444716]
[1765572585451,0.4533,3083.3,3082.7,0.40134683]
[1765572585652,6.4857152,3083.7,3082.8,0.58047529]
[1765572585855,0.4533,3083.6,3082.8,0.58047529]
[1765572587761,3.24306794,3083.5,3082.9,0.58047529]
[1765572587951,6.48613588,3083.5,3082.7,4.3393394]
[1765572588152,0.4533,3083.4,3082.7,4.33930393]
[1765572588359,0.4533,3083.4,3082.3,3.33873333]
[1765572588360,0.4977,3082.8,3082.3,3.33873333]
[1765572588667,0.4977,3082.8,3082.6,0.58047529]
[1765572588856,0.951,3082.8,3082.5,0.09444716]
[1765572589481,0.4977,3082.6,3082.1,0.002]
[1765572589768,3.73963579,3082.2,3082.1,0.002]
[1765572590064,4.43803168,3082.2,3082.1,0.002]
[1765572590248,4.89133168,3082.2,3082.1,0.002]
[1765572590869,4.89133168,3082.2,3081.8,0.002]
[1765572591047,0.5346,3080.6,3079.5,0.002]
[1765572591253,0.6681,3079.6,3079.5,0.002]
[1765572591567,0.516,3080.0,3079.5,0.002]
[1765572591769,3.76275883,3080.0,3079.5,0.4617]
[1765572592080,0.516,3080.4,3079.9,0.4597]
[1765572592387,3.76224963,3080.5,3080.0,0.09444716]
[1765572592573,7.71412596,3080.5,3079.9,0.4597]
[1765572592955,0.4698,3080.4,3079.5,0.518]
[1765572593155,0.4698,3080.4,3079.6,0.4854]
[1765572593876,3.24643703,3080.3,3079.6,0.4854]
[1765572594185,0.7056267,3080.5,3080.1,0.09444716]
[1765572594408,0.516,3080.8,3080.1,0.09444716]
[1765572594584,6.49171285,3080.9,3080.4,0.4597]
[1765572594748,6.49171285,3080.9,3080.3,0.09444716]
[1765572595249,6.49171285,3080.9,3080.0,0.4854]
[1765572595449,0.4866,3080.4,3079.9,0.516]
[1765572595868,0.4866,3080.4,3079.7,0.61044716]
[1765572595869,3.24643703,3080.3,3079.7,0.61044716]
[1765572596064,3.76180479,3080.9,3080.3,0.4597]
[1765572596267,0.39433048,3080.8,3080.3,0.4597]
[1765572597881,3.24601551,3080.7,3080.3,0.4597]
[1765572598082,6.49203102,3080.7,3080.2,0.29304716]
[1765572598385,3.24601551,3080.7,3080.2,0.684]
[1765572598560,6.49203102,3080.7,3080.2,0.684]
[1765572598762,0.68863615,3080.6,3080.2,0.684]
[1765572598952,0.68863615,3080.6,3080.2,0.1986]
[1765572599353,0.68863615,3080.6,3080.2,0.29304716]
[1765572599764,0.39433048,3080.8,3080.5,0.4597]
[1765572599962,0.4698,3081.4,3080.4,0.09444716]
[1765572599963,6.49097754,3081.2,3080.6,0.4597]
[1765572600282,0.001,3081.8,3081.2,0.6583]
[1765572600459,0.001,3081.8,3081.7,8.46323695]
[1765572600659,0.64757382,3083.2,3081.8,0.58047529]
[1765572600981,3.24400996,3082.7,3081.9,0.517]
[1765572601160,0.2597,3081.9,3081.3,0.405504]
[1765572601359,0.51652529,3081.9,3080.7,1.45965846]
[1765572601570,0.4698,3081.8,3080.9,0.517]
[1765572601768,3.24496219,3081.7,3080.8,0.4854]
[1765572601989,6.48992438,3081.7,3080.8,0.4854]
[1765572602289,6.95972438,3081.7,3080.8,1.06587529]
[1765572602485,0.69597244,3081.6,3080.8,0.4854]
[1765572602796,1.21297244,3081.6,3080.3,0.4854]
[1765572602995,0.1206,3080.9,3080.2,0.81004716]
[1765572603211,0.1206,3080.9,3080.2,0.1986]
[1765572603437,0.1206,3081.2,3080.3,0.57984716]
[1765572603719,0.1206,3081.2,3080.3,1.67732245]
[1765572604026,3.2451728,3081.5,3081.1,0.4597]
[1765572604189,6.9601456,3081.5,3080.4,1.06587529]
[1765572604390,0.4698,3081.4,3080.5,0.57984716]
[1765572604849,0.4698,3081.4,3080.3,0.67492245]
[1765572604991,0.4698,3081.4,3080.1,0.29304716]
[1765572605315,0.0326,3081.2,3080.1,4.0566761]
[1765572605489,0.0326,3081.2,3080.1,1.78147529]
[1765572605689,0.4698,3081.1,3080.1,0.684]
[1765572605920,6.49139888,3081.0,3080.1,0.684]
[1765572606287,0.1206,3080.9,3080.2,0.58047529]
[1765572606518,0.70817989,3080.8,3080.2,0.58047529]
[1765572607067,0.0326,3081.2,3080.7,0.4597]
[1765572607324,0.0326,3081.2,3080.4,0.4854]
[1765572607530,0.0326,3081.2,3080.5,0.57984716]
[1765572607834,0.0326,3081.2,3081.1,0.6583]
[1765572608134,0.0326,3081.2,3081.1,1.1753]
[1765572608285,0.0326,3081.2,3081.1,1.1437]
[1765572608487,0.0326,3081.2,3081.1,0.6583]
[1765572608703,0.0326,3081.2,3081.1,1.1437]
[1765572610428,0.0326,3081.2,3081.1,0.6583]
[1765572610846,0.0326,3081.2,3081.1,0.517]
[1765572611221,0.0326,3081.2,3081.1,0.9767]
[1765572611413,0.0326,3081.2,3080.8,0.4854]
[1765572611615,0.0326,3081.2,3080.8,0.58047529]
[1765572612148,0.0326,3081.2,3080.9,0.517]
[1765572612363,0.0326,3081.2,3081.1,0.6583]
[1765572613159,0.0326,3081.2,3080.9,1.09684716]
[1765572613551,0.0326,3081.2,3081.1,0.4597]
[1765572614815,0.0326,3081.2,3081.1,4.48374126]
[1765572615011,0.0326,3081.2,3081.1,5.06421655]
[1765572616814,0.0326,3081.2,3081.1,15.03935055]
[1765572617318,0.0326,3081.2,3081.1,11.27947955]
[1765572617924,0.0326,3081.2,3081.1,11.35692367]
[1765572618256,0.0326,3081.2,3081.1,5.98672055]
[1765572618418,0.0326,3081.2,3081.1,8.65508855]
[1765572618735,0.0326,3081.2,3081.1,5.98672055]
[1765572619134,0.0326,3081.2,3081.1,8.27108855]
[1765572619343,0.0326,3081.2,3081.1,5.98672055]
[1765572619727,0.0326,3081.2,3081.1,5.46972055]
[1765572620031,0.0326,3081.2,3081.1,5.98672055]
[1765572621154,3.24557214,3082.1,3081.1,5.98672055]
[1765572621155,0.001,3082.1,3081.2,19.413196]
[1765572621339,0.001,3082.1,3082.0,21.63705472]
[1765572621523,0.001,3082.1,3082.0,2.03887529]
[1765572622250,0.001,3082.1,3082.0,4.58549029]
[1765572622550,0.001,3082.1,3082.0,28.25436705]
[1765572622715,0.001,3082.1,3082.0,22.95266505]
[1765572623521,0.001,3082.1,3082.0,29.65666805]
[1765572623726,0.001,3082.1,3082.0,23.71938805]
[1765572624033,0.001,3082.1,3082.0,22.29908505]
[1765572624349,0.001,3082.1,3082.0,11.92217762]
[1765572624555,0.001,3082.1,3082.0,12.43917762]
[1765572624846,0.001,3082.1,3082.0,1.06397529]
[1765572625050,0.001,3082.1,3082.0,1.19192245]
[1765572625449,0.001,3082.1,3082.0,1.09747529]
[1765572625821,0.001,3082.1,3082.0,4.79282162]
[1765572626026,0.001,3082.1,3082.0,1.64262245]
[1765572626437,0.001,3082.1,3082.0,4.43656878]
[1765572626846,0.0802,3082.1,3082.0,1.09747529]
[1765572627256,0.0802,3082.1,3082.0,0.58047529]
[1765572627459,0.001,3082.1,3082.0,1.09747529]
[1765572627827,0.001,3082.1,3082.0,4.37026878]
[1765572628028,0.001,3082.1,3082.0,5.33806878]
[1765572628842,0.001,3082.1,3082.0,4.88726878]
[1765572629355,0.001,3082.1,3082.0,1.64262245]
[1765572629959,0.001,3082.1,3082.0,1.19192245]
[1765572630256,0.001,3082.1,3082.0,4.43656878]
[1765572630458,0.001,3082.1,3082.0,5.33806878]
[1765572630833,0.001,3082.1,3082.0,5.74357278]
[1765572631032,0.001,3082.1,3082.0,19.92884378]
[1765572631970,0.001,3082.1,3082.0,27.19927978]
[1765572632140,0.001,3082.1,3082.0,24.69550578]
[1765572632337,0.001,3082.1,3082.0,33.07095999]
[1765572633057,0.001,3082.1,3082.0,31.7737451]
[1765572633256,0.001,3082.1,3082.0,11.46409789]
[1765572633833,0.001,3082.1,3082.0,19.87340289]
[1765572634035,0.001,3082.1,3082.0,19.40588589]
[1765572634968,0.001,3082.1,3082.0,14.15443794]
[1765572635268,0.001,3082.1,3082.0,31.61918294]
[1765572635430,0.001,3082.1,3082.0,31.60842641]
[1765572635628,0.001,3082.1,3082.0,32.12542641]
[1765572636163,0.001,3082.1,3082.0,44.66068141]
[1765572638063,0.001,3082.1,3082.0,41.87346241]
[1765572638257,0.001,3082.1,3082.0,25.0541082]
[1765572638561,0.001,3082.1,3082.0,18.86269873]
[1765572639074,0.001,3082.1,3082.0,19.15306694]
[1765572639449,0.001,3082.1,3082.0,10.77761273]
[1765572639865,0.001,3082.1,3082.0,10.26061273]
[1765572640067,0.001,3082.1,3082.0,20.24730973]
[1765572640374,0.001,3082.1,3082.0,10.06030473]
[1765572640537,0.001,3082.8,3082.0,10.5665482]
[1765572640737,0.1481,3086.2,3083.1,14.810805]
[1765572640738,0.5906,3084.1,3083.1,14.810805]
[1765572640958,0.5906,3084.1,3083.3,12.389102]
[1765572641159,0.47,3084.0,3083.3,11.509196]
[1765572641493,0.47,3084.0,3083.5,0.58047529]
[1765572641789,0.47,3084.0,3083.6,0.517]
[1765572642171,0.0792,3083.7,3083.6,0.517]
[1765572642770,0.5453,3083.7,3083.6,0.517]
[1765572642977,0.5453,3083.7,3083.2,0.58047529]
[1765572643170,0.4661,3083.7,3083.2,0.58047529]
[1765572643367,0.0831,3083.3,3083.0,0.61144716]
[1765572643655,0.0831,3083.1,3083.0,0.61144716]
[1765572643879,0.0831,3083.1,3083.0,0.517]
[1765572644259,0.0831,3083.1,3083.0,1.19192245]
[1765572644461,0.0831,3083.1,3083.0,1.09747529]
[1765572644869,0.0831,3083.1,3083.0,0.58047529]
[1765572645691,0.5454,3083.1,3083.0,0.58047529]
[1765572645891,0.5454,3083.1,3082.5,3.24403874]
[1765572645892,0.5454,3083.1,3082.4,0.97392636]
[1765572646090,0.47,3083.2,3082.4,0.517]
[1765572646277,0.47,3083.1,3082.4,0.517]
[1765572646482,6.9557152,3083.7,3082.7,3.24390111]
[1765572646684,1.01985206,3083.6,3082.7,3.24390111]
[1765572646878,1.48985206,3083.6,3082.6,0.09444716]
[1765572647096,0.47,3083.5,3082.8,0.518]
[1765572647589,6.48613588,3083.5,3082.9,0.09444716]
[1765572647794,0.0792,3083.0,3082.9,0.61244716]
[1765572648501,0.5453,3083.0,3082.8,0.518]
[1765572648663,0.1481,3082.9,3082.8,0.518]
[1765572648863,0.2312,3082.9,3082.6,0.58047529]
[1765572649069,0.0792,3082.7,3082.6,1.19292245]
[1765572650297,0.0792,3082.7,3082.6,1.09847529]
[1765572650499,0.0792,3082.7,3082.6,1.19292245]
[1765572651022,0.5453,3082.7,3082.6,0.58047529]
[1765572651303,0.0792,3082.7,3082.6,0.58047529]
[1765572651465,7.0331191,3082.7,3081.5,3.24516691]
[1765572651668,0.70331191,3082.6,3081.6,3.85642221]
[1765572651898,1.18841191,3082.6,3081.6,3.85645083]
[1765572652074,0.0643,3081.7,3081.4,0.09444716]
[1765572652275,0.0643,3081.7,3081.5,0.517]
[1765572652574,0.0643,3081.7,3081.5,1.09747529]
[1765572653076,3.2443659,3082.3,3081.5,1.09747529]
[1765572653283,0.32443659,3082.2,3081.6,0.54634716]
[1765572653798,0.80953659,3082.2,3081.6,0.09444716]
[1765572654573,0.80953659,3082.2,3081.7,0.58047529]
[1765572654973,0.4851,3082.1,3081.7,0.58047529]
[1765572655299,0.4851,3082.2,3081.8,0.09444716]
[1765572655673,0.0643,3081.9,3081.8,0.09444716]
[1765572655983,0.0643,3081.9,3081.7,0.58047529]
[1765572656505,0.0643,3081.9,3081.7,3.82541301]
[1765572657001,0.2415,3081.8,3081.7,0.58047529]
[1765572657208,0.4205,3081.8,3081.7,3.82543748]
[1765572657414,0.4205,3081.8,3081.7,0.58047529]
[1765572657702,0.4205,3081.8,3081.7,3.82543748]
[1765572657900,0.4205,3081.8,3081.7,0.58047529]
[1765572658070,0.4205,3081.8,3081.7,3.82543748]
[1765572658275,0.2415,3081.8,3081.7,3.82543748]
[1765572658509,0.2415,3081.8,3081.7,0.58047529]
[1765572658973,0.2415,3081.8,3081.7,3.82543748]
[1765572659171,0.4851,3082.5,3081.8,0.58047529]
[1765572659375,0.44324401,3082.4,3081.9,0.09444716]
[1765572660014,3.24402064,3082.6,3081.9,0.09444716]
[1765572660415,0.0643,3082.0,3081.7,0.58047529]
[1765572660598,0.2409,3081.8,3081.2,6.071495]
[1765572660804,0.0072,3081.5,3081.3,0.61144716]
[1765572661099,0.0072,3081.5,3081.4,0.58047529]
[1765572661609,0.179,3081.9,3081.4,1.03237529]
[1765572661813,0.0643,3081.5,3081.4,0.58047529]
[1765572662609,0.4809,3081.8,3081.4,0.58047529]
[1765572662908,0.0684,3081.5,3081.2,0.517]
[1765572663087,3.72578952,3081.8,3081.2,0.517]
[1765572663290,0.39047895,3081.7,3080.9,3.80124187]
[1765572663482,0.87557895,3081.7,3081.2,1.09747529]
[1765572663691,0.87557895,3081.7,3081.2,0.517]
[1765572663891,0.0643,3081.3,3081.2,0.517]
[1765572664494,0.0643,3081.3,3081.2,0.58047529]
[1765572665285,0.0643,3081.3,3081.0,0.517]
[1765572665286,0.0643,3081.3,3081.0,4.34315096]
[1765572665904,0.0643,3081.3,3081.2,0.58047529]
[1765572666812,0.4809,3081.6,3081.3,0.58047529]
[1765572667188,0.0684,3081.4,3081.3,0.58047529]
[1765572667916,0.179,3081.9,3081.3,3.82585873]
[1765572668088,3.8146383,3081.9,3081.3,1.03237529]
[1765572668412,0.0643,3081.4,3080.7,3.34044514]
[1765572668620,0.0643,3080.8,3080.7,0.61144716]
[1765572668912,0.0643,3080.8,3080.1,0.29304716]
[1765572668913,0.0643,3080.8,3080.0,0.002]
[1765572669233,0.0048,3080.7,3080.1,0.58047529]
[1765572670287,0.0048,3080.7,3080.1,0.67492245]
[1765572670488,1.01690669,3080.7,3080.1,0.67492245]
[1765572670986,4.26299471,3080.7,3080.1,0.67492245]
[1765572671188,1.01690669,3080.7,3080.2,0.58047529]
[1765572671402,4.26293626,3080.7,3080.2,0.58047529]
[1765572671599,0.1206,3080.9,3080.3,0.461]
[1765572671801,0.1206,3081.1,3080.4,0.09444716]
[1765572671999,0.1206,3081.1,3080.4,0.61144716]
[1765572672211,0.4851,3081.4,3080.6,0.09444716]
[1765572672421,0.517,3081.6,3080.8,0.09444716]
[1765572672622,0.517,3081.6,3080.8,0.61144716]
[1765572672821,3.76210494,3081.6,3080.8,0.61144716]
[1765572673026,3.66999827,3081.5,3080.8,3.85733879]
[1765572673992,0.517,3081.6,3080.8,7.59670804]
[1765572674342,0.517,3081.6,3081.0,0.09444716]
[1765572674820,6.49000178,3081.7,3080.8,3.76289163]
[1765572675008,0.0009,3080.9,3080.7,1.09747529]
[1765572675403,0.4851,3081.3,3080.8,0.58047529]
[1765572676314,0.517,3081.6,3080.9,0.09444716]
[1765572676621,0.6641,3081.9,3080.9,0.55544716]
[1765572677331,3.90889128,3081.9,3081.1,0.67492245]
[1765572677534,3.90889128,3081.9,3081.1,0.86022245]
[1765572678527,0.4851,3081.8,3081.1,0.58047529]
[1765572678704,0.71536826,3081.7,3081.1,0.58047529]
[1765572679399,3.42379128,3081.9,3081.2,3.24548877]
[1765572679806,3.88179128,3081.9,3081.2,3.24548877]
[1765572681027,3.83179128,3081.9,3081.2,3.24548877]
[1765572681548,3.83179128,3081.9,3081.3,0.09444716]
[1765572681695,3.24401479,3082.6,3081.8,0.4737]
[1765572682009,0.66610148,3082.5,3081.6,0.517]
[1765572682209,0.4592,3082.5,3081.6,0.517]
[1765572682410,0.4592,3082.5,3081.6,0.9828]
[1765572682610,0.4592,3082.5,3081.6,0.517]
[1765572683228,0.4592,3082.5,3081.6,0.61144716]
[1765572683415,0.69473238,3082.4,3081.6,0.61144716]
[1765572683608,3.24433053,3082.3,3081.6,0.09444716]
[1765572683816,3.70353053,3082.3,3081.6,3.85651107]
[1765572684005,3.70353053,3082.3,3081.6,0.61144716]
[1765572684330,3.70353053,3082.3,3081.6,3.85650838]
[1765572684633,6.94786106,3082.3,3081.6,0.61144716]
[1765572685030,3.70353053,3082.3,3081.6,3.85647384]
[1765572685404,3.24433053,3082.3,3081.6,4.32227384]
[1765572686331,3.24422527,3082.4,3081.8,0.09444716]
[1765572686831,3.24383402,3082.8,3082.3,0.6686]
[1765572687015,6.48766804,3082.8,3082.3,0.4737]
[1765572687214,0.4592,3082.7,3082.2,0.09444716]
[1765572687610,3.90741082,3082.8,3082.2,0.09444716]
[1765572687814,7.15124484,3082.8,3082.2,0.09444716]
[1765572688543,7.15124484,3082.8,3082.1,0.1949]
[1765572688940,7.61044484,3082.8,3081.9,4.80798334]
[1765572689119,1.23505448,3082.7,3082.0,0.09444716]
[1765572689446,0.0404,3082.0,3080.6,0.74554716]
[1765572689663,0.517,3082.0,3081.1,3.24553205]
[1765572689934,0.129,3081.9,3081.3,0.58047529]
[1765572690243,0.129,3081.9,3081.2,0.1949]
[1765572690454,0.129,3081.9,3081.0,0.517]
[1765572690455,3.2578569,3081.8,3081.0,0.517]
[1765572690948,3.2578569,3081.8,3081.1,0.1949]
[1765572691448,3.2578569,3081.8,3081.3,0.58047529]
[1765572692243,3.37377345,3081.9,3081.4,0.58047529]
[1765572692444,3.37377345,3081.9,3081.3,3.24536836]
[1765572692445,3.37377345,3081.9,3081.2,3.82592175]
[1765572692612,0.129,3081.9,3081.4,0.58047529]
[1765572692812,3.24453816,3082.2,3081.4,0.58047529]
[1765572693034,3.24453816,3082.2,3081.5,0.09444716]
[1765572693758,3.24453816,3082.2,3081.5,3.33961291]
[1765572693913,3.24453816,3082.2,3081.5,3.80541291]
[1765572694113,3.39180622,3082.9,3082.1,0.4737]
[1765572694431,4.70716954,3082.9,3082.1,0.6686]
[1765572694646,4.70716954,3082.9,3082.1,1.22884716]
[1765572694860,6.48760866,3082.8,3082.1,1.22884716]
[1765572696550,3.24380433,3082.8,3082.1,1.22884716]
[1765572696761,3.24380433,3082.8,3082.2,0.17458472]
[1765572697050,3.24380433,3082.8,3082.1,1.22884716]
[1765572697542,6.48760866,3082.8,3082.1,1.22884716]
[1765572698324,6.48760866,3082.8,3082.1,4.47334568]
[1765572698325,3.24380433,3082.8,3082.1,4.47334568]
[1765572698922,0.1481,3082.9,3082.3,0.09444716]
[1765572699341,3.24348869,3083.1,3082.3,0.56024716]
[1765572700024,6.48697738,3083.1,3082.3,0.56024716]
[1765572700726,6.48697738,3083.1,3082.3,4.38504067]
[1765572701133,6.48697738,3083.1,3082.3,0.56024716]
[1765572701850,6.48697738,3083.1,3082.2,3.82486691]
[1765572702157,1.17710774,3083.0,3082.2,3.82486691]
[1765572702764,3.24369911,3082.9,3082.2,3.82486691]
[1765572702970,3.39179911,3082.9,3082.2,3.82486691]
[1765572703567,3.39179911,3082.9,3082.3,0.09444716]
[1765572705363,6.63549822,3082.9,3082.3,0.09444716]
[1765572705568,5.22333971,3082.9,3082.3,0.67492245]
[1765572705768,3.85099911,3082.9,3082.3,0.67492245]
[1765572707883,3.85099911,3082.9,3082.3,0.58047529]
[1765572708459,7.09469822,3082.9,3082.1,4.1143176]
[1765572708864,0.4592,3082.8,3081.8,0.1949]
[1765572709057,0.0009,3082.1,3081.7,0.516]
[1765572709259,0.0009,3082.1,3081.7,0.58047529]
[1765572709742,0.0009,3082.1,3081.6,3.7609972]
[1765572709743,0.0009,3082.1,3081.9,0.58047529]
[1765572710272,3.24423943,3082.4,3081.9,0.58047529]
[1765572710565,4.39226605,3082.4,3081.9,0.58047529]
[1765572711164,0.64882662,3082.4,3082.0,0.58047529]
[1765572711369,3.2440268,3082.6,3082.0,0.58047529]
[1765572711730,1.0152,3082.7,3082.1,0.27504716]
[1765572711731,3.75995346,3082.7,3082.1,0.27504716]
[1765572712137,3.75995346,3082.7,3082.2,3.24443579]
[1765572712665,3.75995346,3082.7,3082.1,3.99674569]
[1765572713040,3.75995346,3082.7,3082.2,0.4772]
[1765572713245,0.516,3082.7,3082.2,0.4772]
[1765572713570,3.24384068,3082.8,3082.2,0.4772]
[1765572713863,6.37,3083.1,3082.7,0.4759]
[1765572714051,9.6134957,3083.1,3082.8,0.4759]
[1765572714440,9.6134957,3083.1,3082.5,3.81569351]
[1765572714860,9.6134957,3083.1,3082.5,3.81576269]
[1765572715259,6.37,3083.1,3082.6,3.24391714]
[1765572715461,0.4992,3083.7,3083.0,0.4759]
[1765572715660,3.24298488,3083.6,3083.1,0.4759]
[1765572715985,3.74207745,3083.7,3083.1,3.7193688]
[1765572716336,3.74207745,3083.7,3083.1,0.6565]
[1765572716534,0.38331195,3083.9,3083.1,7.1434689]
[1765572716739,3.87917354,3084.0,3083.2,0.516]
[1765572716938,0.6366,3084.0,3083.2,1.66812245]
[1765572717139,3.24325081,3084.3,3083.9,0.4759]
[1765572717352,3.24325081,3084.3,3083.3,0.882704]
[1765572717778,3.24325081,3084.3,3083.4,0.4772]
[1765572718157,3.24325081,3084.3,3083.5,6.48613588]
[1765572718358,3.24325081,3084.3,3083.7,0.09444716]
[1765572718359,0.001,3084.3,3083.7,0.09444716]
[1765572718665,0.001,3084.3,3083.8,0.4772]
[1765572719273,0.001,3084.3,3084.2,0.4759]
[1765572719641,0.001,3084.3,3083.8,0.4772]
[1765572719847,0.001,3084.3,3083.9,0.516]
[1765572720262,0.001,3084.3,3084.2,0.4759]
[1765572720546,0.001,3084.3,3083.9,4.91074314]
[1765572720975,0.001,3084.3,3083.9,7.67619043]
[1765572721149,0.001,3084.3,3084.2,0.6565]
[1765572721579,0.001,3084.3,3084.2,10.36979529]
[1765572721781,0.001,3084.3,3084.2,11.25123508]
[1765572721957,0.001,3084.3,3084.2,10.77529929]
[1765572722179,0.001,3084.3,3084.2,14.01763117]
[1765572722482,0.001,3084.3,3084.2,9.20226317]
[1765572723273,0.001,3084.3,3084.2,9.31275917]
[1765572723591,0.001,3084.3,3084.2,35.87801117]
[1765572723885,0.001,3084.3,3084.2,35.16795017]
[1765572724391,0.001,3084.3,3084.2,21.52727017]
[1765572724593,0.001,3084.3,3084.2,1.05317529]
[1765572724888,0.001,3084.3,3083.8,0.516]
[1765572725084,0.001,3084.3,3083.9,0.4659]
[1765572725289,0.4631,3084.3,3083.9,0.516]
[1765572725587,0.087,3084.0,3083.3,3.24323937]
[1765572725800,0.0009,3083.8,3083.4,0.516]
[1765572725962,0.001,3084.3,3083.4,1.65682245]
[1765572726153,0.001,3084.3,3083.7,0.4727]
[1765572726586,0.001,3084.3,3083.8,0.58047529]
[1765572726787,0.001,3084.3,3083.7,0.4727]
[1765572727155,0.001,3084.3,3083.7,1.05317529]
[1765572728092,0.69581331,3084.3,3083.7,1.05317529]
[1765572728390,3.24233188,3084.2,3083.7,0.4727]
[1765572728555,3.24325338,3084.3,3083.7,0.4727]
[1765572728757,3.24325338,3084.3,3083.7,1.05317529]
[1765572729179,6.94760676,3084.3,3083.7,0.4727]
[1765572729381,7.64246744,3084.3,3083.7,0.4727]
[1765572730093,4.40021406,3084.3,3083.7,1.05317529]
[1765572730394,0.087,3083.8,3083.5,0.516]
[1765572730692,0.4584,3084.2,3083.7,1.05317529]
[1765572730873,0.4584,3084.2,3083.7,3.71555633]
[1765572731202,0.001,3084.3,3084.1,0.4727]
[1765572731401,0.001,3084.3,3084.2,0.4727]
[1765572731551,0.001,3084.3,3084.2,0.9386]
[1765572732196,0.001,3084.3,3084.2,1.03304716]
[1765572732358,0.001,3084.3,3084.2,4.85585433]
[1765572732767,0.001,3084.3,3084.2,1.05317529]
[1765572732990,0.001,3084.3,3084.2,1.09647529]
[1765572733502,0.088,3084.3,3084.2,0.58047529]
[1765572733906,0.001,3084.3,3084.2,0.58047529]
[1765572735189,0.001,3084.3,3084.2,1.05317529]
[1765572735499,0.001,3084.3,3084.2,4.29550717]